Cogmind - Beta 13 @@@ ROGUE MODE // 2024.05.02 @ 17:30:28 Player: void Result: Destroyed by G-47 Trooper with Particle Gun Performance ------------- Evolutions (0) 0 Regions Visited (2) 400 Robots Destroyed (25) 125 Value Destroyed (641) 641 Prototype IDs (0) 0 Alien Tech Used (0) 0 Bonus (0) 0 TOTAL SCORE: 1166 Bonus ------- None Cogmind --------- Core Integrity 0/250 Matter 300/300 Energy 100/100 System Corruption 0% Temperature Cool (9) Movement Core (100) Ox1 Location -10/Mines Parts ------- > --- POWER (1) -------- (None) > --- PROPULSION (2) --- (None) > --- UTILITY (2) ------ Heat Sink Small Storage Unit > --- WEAPON (2) ------- (None) > --- INVENTORY (8) ---- Ion Engine Large Storage Unit Improved Terrain Scanner Medium Armor Plating Mining Laser Peak State ------------ > --- POWER ------------ Ion Engine > --- PROPULSION ------- Aluminum Leg Aluminum Leg > --- UTILITY ---------- Improved Heat Sink Small Storage Unit > --- WEAPON ----------- Particle Gun Light Cannon > --- INVENTORY -------- Ion Engine Aluminum Leg Large Storage Unit Improved Terrain Scanner Medium Armor Plating Light Cannon Mining Laser [Rating: 11] Favorites ----------- Power Ion Engine Engine Ion Engine Propulsion Aluminum Leg Leg Aluminum Leg Utility Small Storage Unit Device Sensor Array Storage Small Storage Unit Weapon Light Cannon Energy Gun Small Laser Ballistic Gun Light Assault Rifle Ballistic Cannon Light Cannon Special Weapon Mining Laser Build | -11 -10 -10 ------- Run | Yrd Mat Min Slots Evolved . | . . . Power . | . . . Propulsion . | . . . Utility . | . . . Weapon . | . . . Parts Attached 26 | 7 10 9 Power 4 | 1 1 2 Engine 4 | 1 1 2 Core . | . . . Reactor . | . . . Propulsion 8 | 2 3 3 Treads . | . . . Leg 8 | 2 3 3 Wheel . | . . . Hover . | . . . Flight . | . . . Utility 5 | 2 1 2 Device 4 | 1 1 2 Storage 1 | 1 . . Processor . | . . . Hackware . | . . . Protection . | . . . Artifact . | . . . Weapon 9 | 2 5 2 Energy Gun 3 | 1 1 1 Energy Cannon . | . . . Ballistic Gun 2 | 1 1 . Ballistic Cannon 3 | . 2 1 Launcher . | . . . Special Weapon 1 | . 1 . Impact Weapon . | . . . Slashing Weapon . | . . . Piercing Weapon . | . . . Special Melee Weapon . | . . . Unidentified Prototypes . | . . . Parts Lost 15 | . 2 13 Power 3 | . 1 2 Propulsion 5 | . . 5 Utility 3 | . 1 2 Weapon 4 | . . 4 Highest Loss Streak 6 | . 2 6 To Critical Strikes . | . . . Average Slot Usage (%) 96 | . 99 90 Engine 13 | . 14 13 Leg 26 | . 28 22 Device 13 | . 13 12 Storage 14 | . 14 14 Energy Gun 9 | . 8 11 Ballistic Gun 3 | . 5 . Ballistic Cannon 13 | . 13 14 Naked Turns . | . . . Heaviest Build 17 | 13 17 17 Greatest Support 20 | 20 20 20 Greatest Overweight (x) 4 | . . 4 Average Overweight (x) . | . . . Largest Inventory Capacity 8 | 8 8 8 Average Capacity 7 | 7 8 8 Most Carried 8 | 4 8 8 Average Carried 6 | 2 7 5 Final Capacity 8 | 8 8 8 Final Carried 8 | 3 8 5 Class Distribution -------------------- 76% | Mutant 23% | Scavenger-Mutant Dominant Class ---------------- Mutant | -10/Materials Scavenger-Mutant | -10/Mines Resources | -11 -10 -10 ----------- Run | Yrd Mat Min Matter Collected 672 | 272 203 197 Remotely . | . . . Salvage Created 852 | 169 342 341 Parts 65 | 16 23 26 Haulers Intercepted . | . . . Recyclers Shooed 2 | 1 . 1 Parts Field Recycled . | . . . Retrieved Matter . | . . . Parts Self-Destructed . | . . . Prevented . | . . . Kills | -11 -10 -10 ------- Run | Yrd Mat Min Combat Hostiles Destroyed 17 | . 8 9 Guns 6 | . 2 4 Cannons 11 | . 6 5 Classes Destroyed 6 | 2 2 2 Worker 1 | . 1 . Tunneler 5 | 4 . 1 Recycler 2 | 1 . 1 Swarmer 3 | . . 3 Grunt 12 | . 8 4 Sentry 2 | . . 2 Best Kill Streak 5 | 2 5 4 Combat Bots Only 4 | . 4 3 Max Kills in Single Turn 1 | 1 1 1 Gunslinging . | . . . Exploded . | . . . Melee . | . . . Uniques/NPCs Destroyed . | . . . Combat | -11 -10 -10 -------- Run | Yrd Mat Min Hostile Shots Fired 165 | . 48 117 Missed 39 | . 14 25 Damage Taken 1634 | . 510 1124 Core 258 | . 63 195 Absorbed by Shields . | . . . Core Remaining (%) 100 | 100 . . Volleys Fired 94 | 15 38 41 Largest 2 | 2 2 2 Hottest 100 | 60 100 100 Shots Fired 170 | 30 67 73 Gun 98 | 30 39 29 Cannon 64 | . 20 44 Launcher . | . . . Special 8 | . 8 . Kinetic 99 | 15 40 44 Thermal 71 | 15 27 29 Explosive . | . . . Electromagnetic . | . . . Robot Hit Streak 17 | 6 7 17 Robot Miss Streak 6 | 3 6 4 Penetration Max . | . . . Secondary Targets . | . . . Shots Hit Robots 102 | 18 35 49 Core Hits 42 | 7 17 18 Critical Kills . | . . . Critical Parts Destroyed . | . . . Critical Strikes 3 | . 2 1 Blast 3 | . 2 1 Melee Attacks . | . . . Impact . | . . . Slashing . | . . . Piercing . | . . . Sneak Attacks . | . . . Combat Hostiles . | . . . Follow-up Attacks . | . . . Damage Inflicted 1425 | 170 468 787 Guns 658 | 170 260 228 Cannons 760 | . 208 552 Explosions . | . . . Melee . | . . . Ramming 7 | . . 7 Kinetic 960 | 84 324 552 Thermal 458 | 86 144 228 Explosive . | . . . Electromagnetic . | . . . Impact . | . . . Slashing . | . . . Piercing . | . . . Highest Corruption . | . . . Average Corruption . | . . . Corruption Purged . | . . . Corruption Blocked . | . . . Overload Shots . | . . . Overflow Damage . | . . . Projectiles . | . . . Explosions . | . . . Melee . | . . . Knockbacks 14 | . 3 11 Impact . | . . . Kinetic 13 | . 3 10 Secondary 1 | . . 1 Self-Inflicted Damage 3 | . . 3 Shots . | . . . Rammed 2 | . . 2 Targets Rammed 3 | . . 3 Kicked 1 | . . 1 Crushed . | . . . Highest Temperature 288 | 40 198 288 Average Temperature 56 | 17 56 77 Received Heat Transfer 768 | . 264 504 Effects 2 | . . 2 Interference 2 | . . 2 Siege Activations . | . . . Robots Corrupted . | . . . Combat Hostiles . | . . . Parts Fried . | . . . Impact Corruptions . | . . . Robots Melted . | . . . Combat Hostiles . | . . . Parts Melted . | . . . Heat Transferred 1071 | 200 325 546 Parts Sabotaged . | . . . Parts Stolen . | . . . Parts Stripped . | . . . Power Chain Reactions . | . . . Alert | -11 -10 -10 ------- Run | Yrd Mat Min Peak Influence 198 | 25 115 198 Initial 43 | . 16 43 Average 81 | 11 64 131 Maximum Alert Level . | . . . Low Security (%) 100 | 100 100 100 Level 1 . | . . . Level 2 . | . . . Level 3 . | . . . Level 4 . | . . . Level 5 . | . . . High Security . | . . . Max Security . | . . . Squads Dispatched 1 | . 1 . Investigation . | . . . Extermination . | . . . Reinforcement 1 | . 1 . Assault . | . . . Garrison . | . . . Intercept . | . . . Searches Triggered . | . . . Construction Impeded . | . . . Haulers Reinforced . | . . . Active Scanning Responses . | . . . Cargo Convoy Interrupts . | . . . Stealth | -11 -10 -10 --------- Run | Yrd Mat Min Distress Signals . | . . . Communications Jammed . | . . . Distress Signals . | . . . Times Spotted 20 | . 10 10 Peak Tracking Total 4 | . 3 4 Tactical Retreats . | . . . Traps | -11 -10 -10 ------- Run | Yrd Mat Min Traps Triggered 1 | . 1 . Indirectly . | . . . Trap Hack Attempts . | . . . Triggered . | . . . Disarmed . | . . . Reprogrammed . | . . . Reused . | . . . Traps Extracted . | . . . Installed . | . . . Triggered . | . . . Machines | -11 -10 -10 ---------- Run | Yrd Mat Min Machines Disabled . | . . . Max in Single Turn . | . . . Machines Repaired . | . . . Machines Dismantled . | . . . Machines Sabotaged . | . . . Overloaded Fab Kills . | . . . Hacking | -11 -10 -10 --------- Run | Yrd Mat Min Machines Accessed 4 | . 4 . Terminals 4 | . 4 . Fabricators . | . . . Repair Stations . | . . . Recycling Units . | . . . Scanalyzers . | . . . Garrison Access . | . . . Total Hacks 8 | . 8 . Successful 1 | . 1 . Failed 7 | . 7 . Catastrophic 4 | . 4 . Database Lockouts . | . . . Manual 8 | . 8 . Terminals 8 | . 8 . Fabricators . | . . . Repair Stations . | . . . Recycling Units . | . . . Scanalyzers . | . . . Garrison Access . | . . . Terminal Hacks 1 | . 1 . Branch Access Points 1 | . 1 . Fabricator Hacks . | . . . Repair Station Hacks . | . . . Recycling Unit Hacks . | . . . Scanalyzer . | . . . Garrison Access Hacks . | . . . Unauthorized Hacks . | . . . Terminals . | . . . Fabricators . | . . . Repair Stations . | . . . Recycling Units . | . . . Scanalyzers . | . . . Garrison Access . | . . . Data Cores Recovered . | . . . Used . | . . . Hacking Detections 4 | . 4 . Full Trace Events 1 | . 1 . Feedback Events . | . . . Feedback Blocked . | . . . Robot Schematics Acquired . | . . . Robots Built . | . . . Authchips . | . . . Time . | . . . Total Robot Build Rating . | . . . Part Schematics Acquired . | . . . Parts Built . | . . . Authchips . | . . . Time . | . . . Total Part Build Rating . | . . . Parts Repaired . | . . . Time . | . . . Parts Recycled . | . . . Recycled Matter . | . . . Retrieved Matter . | . . . Retrieved Components . | . . . Parts Scanalyzed . | . . . Part Schematics Acquired . | . . . Parts Damaged . | . . . Bothacking | -11 -10 -10 ------------ Run | Yrd Mat Min Used RIF Installer . | . . . Robots Hacked . | . . . Non-combat . | . . . Combat . | . . . Robot Hacks Applied . | . . . Relay Couplers Released . | . . . Fabnet Peak Effective % . | . . . Robots Rewired . | . . . Allies Hacked . | . . . Hacks Repelled . | . . . Allies | -11 -10 -10 -------- Run | Yrd Mat Min Total Allies . | . . . Largest Group . | . . . Highest-Rated Group . | . . . Highest-Rated Ally . | . . . Total Orders . | . . . Ally Attacks . | . . . Total Damage . | . . . Kills . | . . . Allies Corrupted . | . . . Allies Melted . | . . . Intel | -11 -10 -10 ------- Run | Yrd Mat Min Robot Analysis Total . | . . . Derelict Logs Recovered 2 | . . 2 Drone Launches . | . . . Drone Recoveries . | . . . Exploration | -11 -10 -10 ------------- Run | Yrd Mat Min Turns Passed 1136 | 119 636 381 Spaces Moved 631 | 59 397 175 Core 18 | 12 . 6 Treads . | . . . Legs 613 | 47 397 169 Wheels . | . . . Hover . | . . . Flight . | . . . Fastest Speed 50 | 50 120 120 Average Speed 121 | 105 120 129 Slowest Speed 250 | 120 120 250 Overloaded Moves . | . . . Propulsion Burnouts . | . . . Robots Hopped . | . . . Cave-ins Triggered . | . . . Exploration Rate (%) 34 | 5 57 41 Regions Visited 2 Branch Regions 1 Pre-discovered Areas 2 | . . 2 Known Exits Taken 1 | . 1 . Unknown Exits Taken 1 | 1 . . Scrap Searched 1 | . . 1 Spaces Dug 8 | . 8 . Terrain Destroyed 8 | . 8 . Melee . | . . . Projectile 8 | . 8 . AOE . | . . . Terrain Rammed . | . . . Walls Destroyed . | . . . Machines Disabled . | . . . Actions | -11 -10 -10 --------- Run | Yrd Mat Min Total 817 | 87 477 253 Wait 43 | . 19 24 Move 629 | 58 396 175 Hop . | . . . Pick Up 16 | 7 9 . Fast Attach 9 | 3 . 6 Attach 9 | 4 2 3 Detach . | . . . Swap 8 | . 8 . Drop 6 | . 5 1 Fire 94 | 15 38 41 Melee . | . . . Ram 2 | . . 2 Kick 1 | . . 1 Crush . | . . . Escape Stasis . | . . . Rewire . | . . . Trap . | . . . Miscellaneous . | . . . Route ------- -11/Scrapyard -10/Materials (discovered 3 exits: [*Mat] / *Min x2) -10/Mines History --------- Turn | Location | Event 22 | -11/Scrapyard | Discovered new exit (range 16) 120 | -11/Scrapyard | Entered Materials 635 | -10/Materials | Build established: Mutant 684 | -10/Materials | Discovered new exit (range 6) 730 | -10/Materials | Identified exit to Mines 756 | -10/Materials | Entered Mines 885 | -10/Mines | Core integrity fell below 50% 943 | -10/Mines | Core integrity fell below 20% 967 | -10/Mines | Lost 6 parts (1p2n1u2w) 1078 | -10/Mines | Learned location of Zion (-7) 1137 | -10/Mines | Destroyed by G-47 Trooper with Particle Gun Last Messages --------------- R-06 Scavenger collects Lgt. Ion Engine. S-10 Pest destroyed. R-06 Scavenger collects Lgt. Assault Rifle. Acquired 6 matter. R-06 Scavenger collects Mining Laser. Acquired 2 matter. Acquired 5 matter. R-06 Scavenger collects Wheel. Acquired 3 matter. Acquired derelict log, extracted data. World map updated: -7/Zion. G-47 Trooper knocked back. Lgt. Cannon destroyed. Aluminum Leg destroyed. Sml. Laser destroyed. Acquired 4 matter. Kicked G-47 Trooper out of the way. Imp. Ion Engine destroyed. Aluminum Leg destroyed. Slammed into G-47 Trooper. Map ----- +----------------------------------------------------+ | | | | | | | | | | | | | | | | | | | | | | | | | | | | | | | | | ????????????????????????????????????? | | ????????????????????????????????????? | | ????????????????????????????????????? | | ????????????????????????????????????? | | ????????????????????????????????????? | | ????????????????????????????????????? | | ????????????????????????????????????? | | ????????????????????????????????????? | | ????????????????????#######?????????? | | ????????????????????# g@#?????????? | | ????????????????????# %#?????????? | | ????????????????????# #?????????? | | ????????????????????# """ #?????????? | | ????????????????????# """ ########??? | | ????????????????????# """ #??? | | ????????????????????# """g #??? | | ????????????????????# ##### #??? | | ????????????????????########### #??? | | ????????????????????# #??? | | ????????????????????# #??? | | ????????????????????# ###########??? | | ????????????????????# #????????????? | | ????????????????????# #????????????? | | ????????????????????# #####????????? | | ????????????????????# ##???????? | | ????????????????????# ###?????? | | ???????????????????## ##????? | | ??????????????????## #????? | | ??????????????????# #????? | | # ############### """ ##????? | | # """ ##?????? | | # """ ##?????? | | ?# #### ####### ####??? | | ?????????????????## ##?? | +----------------------------------------------------+ Best States ------------- Heat Dissipation 39 Energy Generation 12 Energy Capacity 265 Matter Stores 300 Matter Capacity 300 Sight Range 16 Robot Scan Range 14 Terrain Scan Density 10 Evasion (%) 55 Item Schematics ----------------- None Robot Schematics ------------------ None Fabricated ------------ Nothing Alien Tech Used ----------------- None Achievements -------------- None Challenges ------------ None Game ------ Seed PulseIonicRedirector Manual? 0 Play Time 00:13:56 Cumulative 18.8 hours Start 2024.05.02 @ 17:16:03 End 2024.05.02 @ 17:30:28 Sessions 1 Manual Loads 0 Difficulty Rogue Special Mode None Game No. 40 Rogue 32 Adventurer 8 Explorer 0 Win Type - Total 0 Types 0/0/0/0/0/0/0/0/0 Lore% 7 Gallery% 24 Achievement% 19 Wizard Run 0 Options --------- Layout 0 ASCII 0 Keyboard 0 Movement Mouse Keybinds 0 Fullscreen 2 Font 18/SmallcapsGlow Map View 38x25 Zoom Use 100% Tactical HUD 0 Map Filters NONE Filters NONE Steam 1 RUN: 22447c90-f57e-48a6-9b1e-55558890413f